bitfinex-derivatives/quotes_SOLF0:USTF0_20250416
["timestamp","ask_amount","ask_price","bid_price","bid_amount"]
[1744782365950,40.64,125.35,125.23,464.0]
[1744782366155,10.66118074,125.32,125.24,18.16868074]
[1744782366358,10.66118074,125.3,125.24,7.5075]
[1744782366557,10.66118074,125.32,125.24,7.5075]
[1744782366757,10.66118074,125.3,125.24,4.9534]
[1744782367056,10.66118074,125.3,125.24,2.4322]
[1744782367259,0.05789545,125.28,125.26,0.05720851]
[1744782369053,0.05789545,125.28,125.26,8.04120851]
[1744782373963,0.05789545,125.28,125.26,0.05720851]
[1744782375265,0.05789545,125.28,125.26,8.04110851]
[1744782375464,0.05789545,125.28,125.26,0.05720851]
[1744782375965,2.466,125.34,125.28,7.9824]
[1744782376264,2.466,125.34,125.26,12.97428074]
[1744782376461,7.9811,125.31,125.27,7.9831]
[1744782376961,0.06115944,125.3,125.28,0.05470508]
[1744782377165,0.06115944,125.3,125.28,8.03740508]
[1744782378064,0.06115944,125.3,125.29,7.9821]
[1744782380568,7.9785,125.35,125.32,7.9801]
[1744782380963,7.9785,125.35,125.3,10.66118074]
[1744782381160,7.9785,125.35,125.31,7.9805]
[1744782381670,0.0435806,125.34,125.32,0.0584743]
[1744782381867,0.0435806,125.34,125.32,8.0384743]
[1744782382675,0.0435806,125.34,125.32,0.0584743]
[1744782384173,8.0226806,125.34,125.32,0.0584743]
[1744782384471,0.0435806,125.34,125.32,0.0584743]
[1744782385075,8.0227806,125.34,125.32,0.0584743]
[1744782386868,7.9795,125.33,125.32,0.0584743]
[1744782389074,0.0435806,125.34,125.32,0.0584743]
[1744782390171,0.0435806,125.34,125.33,7.9795]
[1744782390669,0.0435806,125.34,125.32,8.0385743]
[1744782392677,0.0435806,125.34,125.32,0.0584743]
[1744782393274,8.0227806,125.34,125.32,0.0584743]
[1744782394079,7.9795,125.33,125.32,0.0584743]
[1744782394280,0.0435806,125.34,125.27,7.983]
[1744782394579,7.9834,125.27,125.23,40.48]
[1744782394773,10.66118074,125.29,125.23,40.48]
[1744782395068,10.66118074,125.31,125.23,40.48]
[1744782395268,10.66118074,125.31,125.23,51.14118074]
[1744782395576,0.05088433,125.28,125.26,0.05279468]
[1744782397176,0.05088433,125.28,125.27,7.9833]
[1744782397479,0.05088433,125.28,125.26,0.05279468]
[1744782397678,0.05088433,125.28,125.26,8.03649468]
[1744782399570,0.05088433,125.28,125.27,7.9833]
[1744782400179,2.4208,125.33,125.26,0.05279468]
[1744782400574,7.9807,125.32,125.26,0.05279468]
[1744782400769,7.9807,125.32,125.28,7.9823]
[1744782400970,2.4208,125.33,125.28,7.9823]
[1744782401182,7.9805,125.32,125.25,15.73188074]
[1744782401376,0.05117057,125.32,125.3,7.981]
[1744782402182,0.05117057,125.32,125.31,7.9808]
[1744782402681,4.91,125.39,125.34,7.9785]
[1744782402886,4.91,125.39,125.31,10.66118074]
[1744782403186,4.91,125.39,125.33,10.66118074]
[1744782403386,4.91,125.39,125.35,7.9778]
[1744782403886,4.91,125.39,125.36,0.05964697]
[1744782404983,4.91,125.39,125.36,8.03714697]
[1744782405287,2.4961,125.39,125.36,8.03714697]
[1744782406082,10.4719,125.39,125.36,0.05964697]
[1744782406287,2.4961,125.39,125.36,0.05964697]
[1744782406885,10.4721,125.39,125.36,0.05964697]
[1744782408490,10.4721,125.39,125.36,8.03724697]
[1744782408790,2.4961,125.39,125.36,0.05964697]
[1744782409181,7.9764,125.38,125.36,0.05964697]
[1744782409887,10.4721,125.39,125.36,0.05964697]
[1744782410185,2.4961,125.39,125.36,0.05964697]
[1744782410686,10.4721,125.39,125.36,0.05964697]
[1744782412890,2.4961,125.39,125.36,8.03704697]
[1744782413189,40.48,125.4,125.36,0.05964697]
[1744782413382,2.493,125.41,125.36,0.05964697]
[1744782413687,10.4678,125.41,125.37,7.9766]
[1744782414291,13.15418074,125.41,125.36,8.03694697]
[1744782414991,7.9754,125.4,125.37,7.9769]
[1744782415185,13.15418074,125.41,125.37,7.9769]
[1744782415491,2.493,125.41,125.37,7.9769]
[1744782415890,2.493,125.41,125.36,8.03704697]
[1744782416087,2.493,125.41,125.36,0.05964697]
[1744782416391,13.15418074,125.41,125.36,0.05964697]
[1744782417190,7.9758,125.39,125.36,0.05964697]
[1744782417391,7.9758,125.39,125.36,8.03724697]
[1744782418384,7.9758,125.39,125.36,0.05964697]
[1744782419094,7.9764,125.38,125.36,0.05964697]
[1744782419289,13.15418074,125.41,125.36,0.05964697]
[1744782419789,7.9762,125.39,125.36,0.05964697]
[1744782420393,7.9762,125.39,125.36,8.03724697]
[1744782420594,13.15418074,125.41,125.36,0.05964697]
[1744782420989,2.493,125.41,125.36,0.05964697]
[1744782421195,2.493,125.41,125.37,7.9767]
[1744782421697,10.4675,125.41,125.38,7.9761]
[1744782421993,2.493,125.41,125.38,7.9761]
[1744782422401,13.20098074,125.43,125.38,7.9761]
[1744782422593,15.56988074,125.43,125.38,7.9761]
[1744782422795,12.8822,125.43,125.39,8.0280103]
[1744782423900,4.9087,125.43,125.39,0.0524103]
[1744782424094,40.48,125.44,125.39,0.0524103]
[1744782424496,40.48,125.44,125.41,7.9741]
[1744782425400,7.9722,125.45,125.41,7.9741]
[1744782425800,7.9722,125.45,125.42,0.0537739]
[1744782426903,10.66118074,125.45,125.42,0.0537739]
[1744782427098,2.5181,125.44,125.42,0.0537739]
[1744782427300,4.8224,125.44,125.42,0.0537739]
[1744782427498,12.7953,125.44,125.42,0.0537739]
[1744782432109,7.9732,125.43,125.42,0.0537739]
[1744782432307,4.8224,125.44,125.38,40.3]
[1744782432610,50.94118074,125.43,125.33,50.94118074]
[1744782432811,7.9755,125.4,125.35,7.9779]
[1744782433411,0.0537739,125.39,125.36,0.05674444]
[1744782433711,0.0537739,125.39,125.36,8.03424444]
[1744782433912,0.0537739,125.39,125.36,0.05674444]
[1744782435318,0.0537739,125.39,125.37,7.977]
[1744782436508,0.0537739,125.39,125.38,7.9763]
[1744782436712,625.38118074,125.47,125.38,40.28]
[1744782437011,7.9719,125.46,125.41,7.974]
[1744782437914,7.9719,125.46,125.42,0.05571825]
[1744782439716,7.972,125.45,125.42,0.05571825]
[1744782441514,7.9727,125.44,125.42,0.05571825]
[1744782442115,7.9722,125.45,125.42,0.05571825]
[1744782444115,7.9726,125.44,125.42,0.05571825]
[1744782446519,7.9732,125.43,125.42,0.05571825]
[1744782447713,10.66118074,125.43,125.37,2.4862]
[1744782447914,10.66118074,125.41,125.33,2.4719]
[1744782448118,50.94118074,125.41,125.33,2.4719]
[1744782448318,7.9769,125.38,125.33,2.4719]
[1744782448519,7.9769,125.38,125.33,10.4512]
[1744782448921,0.05115227,125.37,125.34,0.05209469]
[1744782450019,0.05115227,125.37,125.35,7.9778]
[1744782450918,0.05115227,125.37,125.36,7.9776]
[1744782457224,0.05115227,125.37,125.34,48.13049469]
[1744782457723,0.05115227,125.37,125.34,40.15209469]
[1744782457923,0.05115227,125.37,125.35,7.9777]
[1744782459026,0.05115227,125.37,125.36,7.9776]
[1744782460629,26.70744074,125.44,125.36,10.66118074]
[1744782460923,7.9735,125.43,125.38,10.66118074]
[1744782461124,11.11366,125.44,125.4,7.9746]
[1744782461326,8.67976,125.44,125.38,10.66118074]
[1744782461824,16.65256,125.44,125.4,0.05901005]
[1744782462325,16.65256,125.44,125.4,8.03371005]
[1744782462726,7.9732,125.43,125.4,8.03371005]
[1744782463125,8.67976,125.44,125.4,8.03371005]
[1744782463325,16.65266,125.44,125.4,8.03371005]
[1744782463524,8.67976,125.44,125.4,0.05901005]
[1744782463922,7.9733,125.43,125.4,0.05901005]
[1744782465125,16.65266,125.44,125.4,8.03391005]
[1744782466525,8.67976,125.44,125.41,7.9741]
[1744782466726,8.67976,125.44,125.4,0.05901005]
[1744782467027,8.67976,125.44,125.4,10.72019079]
[1744782467430,8.67976,125.44,125.41,2.4947]
[1744782470227,8.67976,125.44,125.4,10.72019079]
[1744782470628,8.67976,125.44,125.42,7.9732]
[1744782471234,8.67976,125.44,125.4,10.72019079]
[1744782472230,8.67976,125.44,125.42,7.9732]
[1744782473128,8.67976,125.44,125.4,0.05901005]
[1744782474134,8.67976,125.44,125.43,7.9732]
[1744782476432,12.7224,125.49,125.46,7.9708]
[1744782476737,2.5007,125.5,125.44,10.66118074]
[1744782477037,2.3503,125.52,125.46,10.71264023]
[1744782477633,2.3503,125.52,125.5,7.9683]
[1744782478034,2.3503,125.52,125.5,8.02951718]
[1744782478528,42.416,125.53,125.51,7.9681]
[1744782478932,2.316,125.53,125.51,7.9681]
[1744782479234,2.316,125.53,125.5,8.02961718]
[1744782479636,2.316,125.53,125.5,0.06121718]
[1744782480534,50.56118074,125.52,125.44,40.1]
[1744782481045,7.9684,125.51,125.47,7.9702]
[1744782481539,58.52878074,125.52,125.48,7.9694]
[1744782481741,0.05721838,125.5,125.48,8.02715741]
[1744782481940,0.05721838,125.5,125.48,0.05775741]
[1744782482142,8.02601838,125.5,125.48,0.05775741]
[1744782482544,10.71839912,125.5,125.48,0.05775741]
[1744782482842,10.66118074,125.46,125.4,39.9]
[1744782483045,10.66118074,125.46,125.37,574.06]
[1744782483237,7.9735,125.43,125.39,7.9754]
[1744782483438,10.66118074,125.44,125.36,50.56118074]
[1744782483637,2.3318,125.45,125.36,50.56118074]
[1744782483832,0.05773315,125.41,125.39,0.05617054]
[1744782487937,0.05773315,125.41,125.32,50.58118074]
[1744782488141,7.975,125.41,125.35,7.9777]
[1744782488339,7.975,125.41,125.32,50.58118074]
[1744782488534,50.58118074,125.42,125.32,50.58118074]
[1744782488739,7.9751,125.4,125.35,7.9778]
[1744782489041,0.06082502,125.39,125.36,0.06111288]
[1744782489445,0.06082502,125.39,125.36,8.03871288]
[1744782489636,0.06082502,125.39,125.36,0.06111288]
[1744782490140,8.03662502,125.39,125.36,0.06111288]
[1744782492039,0.06082502,125.39,125.36,10.72229362]
[1744782492543,0.06082502,125.39,125.38,7.9763]
[1744782494141,0.06082502,125.39,125.36,0.06111288]
[1744782494643,7.9768,125.38,125.36,0.06111288]
[1744782495043,0.06082502,125.39,125.36,0.06111288]
[1744782495342,8.03702502,125.39,125.36,0.06111288]
[1744782496144,8.03702502,125.39,125.36,8.03871288]
[1744782496441,8.03702502,125.39,125.36,0.06111288]
[1744782497144,0.06082502,125.39,125.36,0.06111288]
[1744782497643,0.06082502,125.39,125.37,7.9767]
[1744782498145,0.06082502,125.39,125.38,7.9763]
[1744782499748,0.06082502,125.39,125.38,7.9763]
[1744782504855,4.7671,125.44,125.4,7.975]
[1744782505655,12.7397,125.44,125.4,7.975]
[1744782506055,0.05140878,125.43,125.41,0.05989659]
[1744782507250,8.02490878,125.43,125.41,0.05989659]
[1744782508957,7.9738,125.42,125.41,0.05989659]
[1744782511260,7.9749,125.41,125.37,39.92]
[1744782511754,7.9749,125.41,125.37,47.8965]
[1744782511959,7.9749,125.41,125.37,39.92]
[1744782512460,0.05451281,125.4,125.38,8.02846303]
[1744782513466,8.02961281,125.4,125.38,0.05226303]
[1744782514456,0.05451281,125.4,125.38,0.05226303]
[1744782514857,0.05451281,125.4,125.38,8.02826303]
[1744782515257,0.05451281,125.4,125.38,0.05226303]
[1744782515565,8.02991281,125.4,125.38,0.05226303]
[1744782516363,0.05451281,125.4,125.38,0.05226303]
[1744782516863,0.05451281,125.4,125.38,8.02826303]
[1744782517665,0.05451281,125.4,125.38,0.05226303]
[1744782518259,0.05451281,125.4,125.38,8.02816303]
[1744782518459,0.05451281,125.4,125.38,0.05226303]
[1744782520068,0.05451281,125.4,125.38,8.02846303]
[1744782520569,0.05451281,125.4,125.39,7.9757]
[1744782521966,39.92,125.46,125.38,10.71344377]
[1744782522270,7.972,125.45,125.38,10.66118074]
[1744782522467,7.972,125.45,125.41,7.974]
[1744782523271,0.05076109,125.44,125.42,0.06096464]
[1744782523867,0.05076109,125.44,125.42,8.03446464]
[1744782524063,0.05076109,125.44,125.42,0.06096464]
[1744782524370,8.02366109,125.44,125.42,0.06096464]
[1744782524971,7.9732,125.43,125.42,0.06096464]
[1744782527473,2.38656109,125.44,125.35,39.74]
[1744782527772,7.0404,125.44,125.36,10.66118074]
[1744782528170,15.0133,125.44,125.4,7.9748]
[1744782528473,7.0404,125.44,125.36,10.66118074]
[1744782528672,0.05145635,125.43,125.41,0.05744357]
[1744782528874,0.05145635,125.43,125.41,8.03154357]
[1744782529270,0.05145635,125.43,125.41,0.05744357]
[1744782530074,8.02465635,125.43,125.41,0.05744357]
[1744782530270,0.05145635,125.43,125.41,0.05744357]
[1744782531872,8.02465635,125.43,125.41,0.05744357]
[1744782532465,0.05145635,125.43,125.41,0.05744357]
[1744782532968,0.05145635,125.43,125.42,7.9738]
[1744782534073,50.202,125.49,125.46,7.9711]
[1744782534971,42.2325,125.49,125.46,7.9711]
[1744782535273,0.0557854,125.49,125.47,7.9706]
[1744782536572,0.0557854,125.49,125.46,8.02481217]
[1744782537872,0.0557854,125.49,125.46,0.05381217]
[1744782538473,0.0557854,125.49,125.48,7.97]
[1744782539170,0.0557854,125.49,125.46,0.05381217]
[1744782539376,0.0557854,125.49,125.47,7.9703]
[1744782540271,0.0557854,125.49,125.46,8.02481217]
[1744782540472,10.66118074,125.48,125.39,574.02]
[1744782540672,10.66118074,125.46,125.41,7.9741]
[1744782540873,10.66118074,125.46,125.4,39.74]
[1744782541071,10.66118074,125.44,125.4,39.74]
[1744782541272,10.66118074,125.42,125.36,7.2626]
[1744782541678,7.9748,125.41,125.36,15.2398]
[1744782541877,0.05044032,125.4,125.38,0.05630725]
[1744782543779,0.05044032,125.4,125.38,8.03230725]
[1744782544883,0.05044032,125.4,125.39,7.9757]
[1744782545681,0.05044032,125.4,125.38,8.03240725]
[1744782546081,0.05044032,125.4,125.38,0.05630725]
[1744782546376,8.02564032,125.4,125.38,0.05630725]
[1744782547077,0.05044032,125.4,125.38,0.05630725]
[1744782548180,0.05044032,125.4,125.38,8.03260725]
[1744782548378,0.05044032,125.4,125.38,0.05630725]
[1744782550181,0.05044032,125.4,125.38,8.03240725]
[1744782550580,0.05044032,125.4,125.38,0.05630725]
[1744782551383,0.05044032,125.4,125.39,7.9757]
[1744782555081,0.05044032,125.4,125.38,8.03240725]
[1744782556182,0.05044032,125.4,125.39,7.9757]
[1744782559582,0.05044032,125.4,125.38,0.05630725]
[1744782559780,0.05044032,125.4,125.38,8.03230725]
[1744782560181,0.05044032,125.4,125.39,7.9757]
[1744782560687,0.05044032,125.4,125.38,0.05630725]
[1744782560889,7.9757,125.39,125.38,0.05630725]
[1744782563296,0.05044032,125.4,125.38,0.05630725]
[1744782563297,8.02574032,125.4,125.38,0.05630725]
[1744782563895,7.9757,125.39,125.38,0.05630725]
[1744782569694,8.02574032,125.4,125.38,0.05630725]
[1744782569896,0.05044032,125.4,125.38,0.05630725]
[1744782570302,7.9757,125.39,125.38,0.05630725]
[1744782570596,10.71162106,125.4,125.3,375.17948074]
[1744782570900,7.9779,125.36,125.32,7.9798]
[1744782571403,7.9792,125.34,125.3,7.9811]
[1744782571902,0.05601042,125.33,125.31,0.05803376]
[1744782572100,7.9802,125.32,125.31,0.05803376]
[1744782572502,7.982,125.3,125.27,39.4]
[1744782573209,7.9811,125.31,125.27,39.4]
[1744782573706,0.05977275,125.3,125.28,0.05368194]
[1744782578011,8.04127275,125.3,125.28,0.05368194]
[1744782578411,0.05977275,125.3,125.28,0.05368194]
[1744782579414,8.04127275,125.3,125.28,0.05368194]
[1744782579610,0.05977275,125.3,125.21,17.85938074]
[1744782579805,10.66118074,125.3,125.21,17.85938074]
[1744782580205,10.66118074,125.28,125.21,7.1982]
[1744782580404,10.66118074,125.28,125.21,4.7041]
[1744782580609,10.66118074,125.28,125.21,12.6907]
[1744782580610,7.9844,125.26,125.21,12.6907]
[1744782581008,8.03813117,125.26,125.23,0.06065552]
[1744782581219,7.9847,125.25,125.23,0.06065552]
[1744782581818,0.05373117,125.26,125.24,10.66118074]
[1744782582017,2.5346,125.32,125.24,39.42]
[1744782582018,13.19578074,125.32,125.24,39.42]
[1744782582217,10.66118074,125.3,125.23,0.06065552]
[1744782582413,2.4702,125.29,125.22,2.391]
[1744782582913,7.983,125.28,125.24,7.9852]
[1744782583114,0.05650144,125.27,125.24,0.05196726]
[1744782583309,0.05650144,125.27,125.24,8.03716726]
[1744782583612,0.05650144,125.27,125.24,0.05196726]
[1744782583914,7.9846,125.25,125.24,0.05196726]
[1744782587822,7.9842,125.26,125.24,0.05196726]
[1744782588225,2.47640144,125.27,125.24,0.05196726]
[1744782588415,7.9846,125.25,125.24,0.05196726]
[1744782590024,7.9843,125.26,125.24,0.05196726]
[1744782590826,10.46020144,125.27,125.24,0.05196726]
[1744782591027,0.05650144,125.27,125.24,8.03726726]
[1744782591222,0.05650144,125.27,125.24,0.05196726]
[1744782591525,0.05650144,125.27,125.24,10.713148]
[1744782592726,0.05650144,125.27,125.26,7.984]
[1744782593525,0.05650144,125.27,125.25,7.9843]
[1744782594925,0.05650144,125.27,125.24,0.05196726]
[1744782595528,0.05650144,125.27,125.26,7.984]
[1744782595719,0.05650144,125.27,125.24,0.05196726]
[1744782596929,8.04020144,125.27,125.24,8.03716726]
[1744782598032,0.05650144,125.27,125.24,10.713148]
[1744782598622,0.05650144,125.27,125.26,7.984]
[1744782601725,0.05650144,125.27,125.24,0.05196726]
[1744782602629,0.05650144,125.27,125.26,7.984]
[1744782603327,49.94118074,125.35,125.3,7.9814]
[1744782603521,49.94118074,125.35,125.25,41.7994]
[1744782603522,39.28,125.35,125.25,41.7994]
[1744782603729,7.9799,125.33,125.27,10.66118074]
[1744782603928,7.9799,125.33,125.3,7.9811]
[1744782604337,7.9803,125.32,125.27,10.66118074]
[1744782604534,7.9803,125.32,125.3,0.05041095]
[1744782605133,0.05406451,125.33,125.3,8.03181095]
[1744782606632,8.03356451,125.33,125.3,0.05041095]
[1744782609035,8.03356451,125.33,125.3,8.03181095]
[1744782610136,8.03356451,125.33,125.3,0.05041095]
[1744782611339,0.05406451,125.33,125.3,0.05041095]
[1744782611535,10.71524525,125.33,125.3,0.05041095]
[1744782611837,10.66118074,125.31,125.25,47.2641]
[1744782612638,7.9824,125.29,125.25,47.2641]
[1744782613139,0.05245206,125.28,125.26,0.05567552]
[1744782613335,10.66118074,125.27,125.21,39.28]
[1744782613639,10.66118074,125.27,125.21,47.2667]
[1744782614538,0.05462032,125.25,125.23,0.0503318]
[1744782615035,0.05462032,125.25,125.24,7.9853]
[1744782615337,39.28,125.3,125.23,10.71151254]
[1744782615533,7.9819,125.3,125.26,7.9836]
[1744782616239,7.9812,125.31,125.27,7.9832]
[1744782616537,0.05419114,125.29,125.27,0.05617412]
[1744782616734,39.28,125.34,125.27,0.05617412]
[1744782616937,0.0503318,125.29,125.27,8.03917412]
[1744782617135,39.28,125.34,125.27,8.03917412]
[1744782617339,0.05518438,125.29,125.27,0.05617412]
[1744782617540,7.9805,125.32,125.28,7.9827]
[1744782617840,0.06107921,125.29,125.26,39.28]
[1744782618141,0.06107921,125.29,125.27,7.9829]
[1744782618440,0.06107921,125.29,125.26,39.33989416]
[1744782618633,0.06107921,125.29,125.27,7.9833]
[1744782619645,0.06107921,125.29,125.28,7.9827]
[1744782619844,0.06107921,125.29,125.26,39.33989416]
[1744782620144,0.06107921,125.29,125.26,47.32349416]
[1744782621542,8.04317921,125.29,125.26,47.32349416]
[1744782622148,0.06107921,125.29,125.26,47.32349416]
[1744782623852,8.04317921,125.29,125.26,47.32349416]
[1744782624950,8.04317921,125.29,125.26,39.33989416]
[1744782625156,0.06107921,125.29,125.26,39.33989416]
[1744782625554,0.06107921,125.29,125.27,7.9829]
[1744782625754,0.06107921,125.29,125.26,39.33989416]
[1744782626558,0.06107921,125.29,125.27,7.9833]
[1744782627049,0.06107921,125.29,125.26,39.33989416]
[1744782627252,0.06107921,125.29,125.27,7.9833]
[1744782628757,0.06107921,125.29,125.26,39.33989416]
[1744782629860,0.06107921,125.29,125.28,7.9827]
[1744782633367,39.28,125.34,125.31,7.9807]
[1744782633665,39.28,125.34,125.27,10.66118074]
[1744782633961,7.9796,125.33,125.3,7.981]
[1744782634460,8.03260485,125.33,125.3,8.03505048]
[1744782635766,0.05300485,125.33,125.31,7.9808]
[1744782636265,0.05300485,125.33,125.32,7.9802]
[1744782638264,0.05300485,125.33,125.3,0.05405048]
[1744782638460,10.71418559,125.33,125.3,0.05405048]
[1744782639162,49.83418559,125.33,125.3,0.05405048]
[1744782639866,7.9808,125.31,125.3,0.05405048]
[1744782642068,7.9823,125.29,125.26,39.28]
[1744782642264,10.66118074,125.29,125.22,39.12]
[1744782642761,7.9835,125.27,125.23,7.9855]
[1744782642956,10.66118074,125.27,125.2,2.4882]
[1744782643161,10.66118074,125.27,125.19,574.66]
[1744782643358,0.05168088,125.25,125.22,0.05703722]
[1744782643562,8.03628088,125.25,125.22,0.05703722]
[1744782643759,0.05168088,125.25,125.22,0.05703722]
[1744782644369,0.05168088,125.25,125.23,7.9858]
[1744782646363,0.05168088,125.25,125.22,0.05703722]
[1744782646765,8.03638088,125.25,125.22,0.05703722]
[1744782647162,0.05168088,125.25,125.22,0.05703722]
[1744782647467,8.03658088,125.25,125.22,0.05703722]
[1744782647670,0.05168088,125.25,125.22,0.05703722]
[1744782647968,0.05168088,125.25,125.23,7.9859]
[1744782648163,0.05168088,125.25,125.22,0.05703722]
[1744782648367,0.05168088,125.25,125.22,7.55463722]
[1744782648571,7.4554,125.3,125.23,49.78118074]
[1744782648771,39.12,125.32,125.25,10.66118074]
[1744782649170,39.12,125.32,125.28,7.9824]
[1744782649171,7.9811,125.31,125.28,7.9824]
[1744782649371,39.12,125.32,125.25,10.66118074]
[1744782649573,39.12,125.32,125.23,49.78118074]
[1744782649773,8.03691992,125.3,125.27,8.03563472]
[1744782651175,0.05511992,125.3,125.28,7.9826]
[1744782656675,10.66118074,125.29,125.27,0.05233472]
[1744782656877,0.05511992,125.3,125.27,0.05233472]
[1744782657076,8.03701992,125.3,125.27,0.05233472]
[1744782657378,0.05511992,125.3,125.27,0.05233472]
[1744782657580,10.66118074,125.29,125.27,0.05233472]
[1744782658580,10.66118074,125.29,125.19,613.86]
[1744782658779,10.66118074,125.27,125.19,613.86]
[1744782659278,7.9854,125.24,125.19,613.86]
[1744782659471,10.66118074,125.27,125.19,39.12]
[1744782659673,49.78118074,125.27,125.19,39.12]
[1744782659979,7.9859,125.23,125.22,0.05814817]
[1744782663077,0.05068147,125.24,125.22,0.05814817]
[1744782663279,38.96,125.31,125.22,0.05814817]
[1744782663475,7.9823,125.29,125.23,10.66118074]
[1744782663680,10.66118074,125.34,125.24,46.2143]
[1744782663881,13.18088074,125.34,125.24,46.2143]
[1744782664276,13.18088074,125.34,125.28,0.05047008]
[1744782664480,0.05993788,125.3,125.28,0.05047008]
[1744782664880,7.9821,125.29,125.28,0.05047008]
[1744782665282,0.05993788,125.3,125.28,0.05047008]
[1744782665781,8.04163788,125.3,125.28,0.05047008]
[1744782668180,10.72111862,125.3,125.24,38.98]
[1744782668682,10.72111862,125.3,125.19,372.66118074]
[1744782668683,2.4781,125.29,125.2,38.96]
[1744782669070,7.9837,125.27,125.23,7.9855]
[1744782669479,0.06038264,125.26,125.24,0.05303499]
[1744782669682,0.06038264,125.26,125.24,8.03803499]
[1744782670280,0.06038264,125.26,125.24,0.05303499]
[1744782672583,0.06038264,125.26,125.25,7.9846]
[1744782674078,2.4119,125.33,125.27,7.9831]
[1744782674885,7.9811,125.31,125.27,7.9831]
[1744782675179,0.06107479,125.3,125.29,7.9821]
[1744782675382,7.9801,125.33,125.29,7.9821]
[1744782675582,0.05710804,125.31,125.29,7.9821]
[1744782675984,0.05710804,125.31,125.3,7.9814]
[1744782677683,13.21058074,125.38,125.33,7.9792]
[1744782677980,13.21058074,125.38,125.29,13.05998074]
[1744782677981,10.526,125.38,125.31,10.66118074]
[1744782678382,7.9771,125.37,125.34,7.9785]
[1744782678887,8.03762802,125.37,125.34,8.03607651]
[1744782679683,7.9777,125.36,125.34,0.05757651]
[1744782680187,7.978,125.36,125.34,0.05757651]
[1744782680686,10.66118074,125.36,125.3,38.96]
[1744782681186,7.9793,125.34,125.3,38.96]
[1744782681687,7.9795,125.33,125.3,38.96]
[1744782681887,8.03612991,125.33,125.31,0.05256104]
[1744782682388,0.05662991,125.33,125.31,0.05256104]
[1744782682988,7.9802,125.32,125.31,0.05256104]
[1744782683488,0.05662991,125.33,125.31,0.05256104]
[1744782683994,8.03652991,125.33,125.31,0.05256104]
[1744782684389,0.05662991,125.33,125.31,0.05256104]
[1744782685896,8.03622991,125.33,125.31,0.05256104]
[1744782686295,0.05662991,125.33,125.31,0.05256104]
[1744782688293,8.03622991,125.33,125.31,0.05256104]
[1744782691600,7.9802,125.32,125.31,0.05256104]
[1744782694000,7.9817,125.3,125.26,46.9436]
[1744782694199,10.66118074,125.32,125.26,38.96]
[1744782694798,13.06208074,125.32,125.26,38.96]
[1744782695001,7.9832,125.28,125.26,38.96]
[1744782695209,13.06208074,125.32,125.26,38.96]
[1744782695210,0.0553374,125.3,125.28,0.06070682]
[1744782696404,7.9821,125.29,125.28,0.06070682]
[1744782699612,8.0369374,125.3,125.28,0.06070682]
[1744782699803,0.0553374,125.3,125.28,0.06070682]
[1744782700812,0.0553374,125.3,125.29,7.9821]
[1744782702413,0.0553374,125.3,125.28,0.06070682]
[1744782703014,8.0371374,125.3,125.28,0.06070682]
[1744782704313,0.0553374,125.3,125.28,0.06070682]
[1744782706213,0.0553374,125.3,125.28,8.04330682]
[1744782708517,0.0553374,125.3,125.29,7.9821]
[1744782709716,0.0553374,125.3,125.28,0.06070682]
[1744782710216,0.0553374,125.3,125.29,7.9821]
[1744782710713,0.0553374,125.3,125.28,8.04290682]
[1744782710914,0.0553374,125.3,125.28,0.06070682]
[1744782711517,8.0368374,125.3,125.28,0.06070682]
[1744782713421,8.0368374,125.3,125.28,8.04340682]
[1744782714620,0.0553374,125.3,125.28,8.04340682]
[1744782714921,0.0553374,125.3,125.28,0.06070682]
[1744782715512,0.0553374,125.3,125.28,8.04340682]
[1744782715820,0.0553374,125.3,125.28,0.06070682]
[1744782716016,10.71651814,125.3,125.28,0.06070682]
[1744782716216,10.71651814,125.3,125.2,369.3426]
[1744782716217,68.15769888,125.3,125.2,369.3426]
[1744782716421,10.66118074,125.26,125.19,38.8]
[1744782716618,10.66118074,125.26,125.21,7.9868]
[1744782716921,10.66118074,125.26,125.19,38.8]
[1744782717121,10.66118074,125.28,125.23,7.9856]
[1744782717320,0.05452953,125.24,125.21,0.05774499]
[1744782717620,7.9828,125.28,125.24,7.9847]
[1744782717821,4.8825,125.29,125.21,10.71436618]
[1744782718022,0.05794736,125.27,125.21,10.66118074]
[1744782718321,0.05794736,125.27,125.25,7.9842]
[1744782718918,0.05794736,125.27,125.24,0.05206471]
[1744782719623,0.05794736,125.27,125.25,7.9843]